[Event "Turkish-ch Youth U17 2024"]
[Site "Belek Antalya"]
[Date "2024.01.27"]
[Round "9"]
[White "Yilmaz, Kerem Tuna"]
[Black "Tarhan, Adar"]
[Result "1-0"]
[ECO "B94"]
[WhiteElo "1945"]
[BlackElo "2420"]
[Annotator "RC"]
[PlyCount "103"]
[EventDate "2024.01.21"]
[EventType "swiss"]
[EventCountry "TUR"]
[SourceTitle "playchess.com"]
[Source "ChessBase"]
[SourceQuality "1"]
[TimeControl "5400+30"]

1. e4 {[%emt 0:01:00]} c5 {[%emt 0:08:00]} 2. Nf3 {[%emt 0:00:30]} d6 {[%emt 0:00:30]} 3. d4 {[%emt 0:00:00]} cxd4 {[%emt 0:00:30]} 4. Nxd4 {[%emt 0:00:00]} Nf6 {[%emt 0:00:30]} 5. Nc3 {[%emt 0:00:00]} a6 {[%emt 0:00:00]} 6. Bg5 {[%emt 0:00:00]} Nbd7 {[%emt 0:00:00]} 7. Bc4 {[%emt 0:02:30]} b5 {[%emt 0:05:30]} 8. Bb3 {[%emt 0:03:30]} Bb7 {[%emt 0:00:30]} 9. f3 {[%emt 0:00:30]} e6 {[%emt 0:04:30]} 10. Qd2 {[%emt 0:04:30]} Nc5 {[%emt 0:01:30]} 11. O-O-O {[%emt 0:04:30]} Be7 {[%emt 0:01:30]} 12. h4 {[%emt 0:05:30]} O-O {[%emt 0:06:30]} 13. g4 {[%emt 0:11:30]} Rc8 {[%emt 0:01:30]} 14. Kb1 {[%emt 0:01:30]} b4 {[%emt 0:02:30]} 15. Na4 {[%emt 0:01:30]} Qa5 {[%emt 0:10:30]} 16. Nxc5 {[%emt 0:01:30]} dxc5 {[%emt 0:00:30]} 17. Nxe6 {[%emt 0:00:30]} c4 {[%emt 0:00:30]} 18. Bxc4 {[%emt 0:01:30]} Rxc4 {[%emt 0:01:30]} 19. Nxf8 {[%emt 0:00:30]} Bxf8 {[%emt 0:01:30]} 20. Qd8 {[%emt 0:04:30]} Qe5 {[%emt 0:01:30]} 21. Qb6 {[%emt 0:07:30]} Qe7 {[%emt 0:08:30]} 22. e5 {[%emt 0:07:30]} Bxf3 {[%emt 0:01:30]} 23. exf6 {[%emt 0:02:30]} gxf6 {[%emt 0:00:00]} 24. Rhe1 {[%emt 0:07:30]} Be4 {[%emt 0:03:00]} 25. Bf4 {[%emt 0:11:30]} Bxc2+ {[%emt 0:08:30]} 26. Ka1 {[%emt 0:00:30]} Bxd1 {[%emt 0:02:30]} 27. Rxe7 {[%emt 0:11:06]} Bxe7 {[%emt 0:00:30]} 28. g5 {[%emt 0:00:30]} fxg5 {[%emt 0:00:30]} 29. hxg5 {[%emt 0:00:30]} Bg4 {[%emt 0:00:30]} 30. Qe3 {[%emt 0:00:30]} Be6 {[%emt 0:00:30]} 31. Be5 {[%emt 0:00:30]} Bc5 {[%emt 0:00:30]} 32. Qd2 {[%emt 0:00:30]} Rg4 {[%emt 0:00:30]} 33. Qd8+ {[%emt 0:00:30]} Bf8 {[%emt 0:00:30]} 34. Kb1 {[%emt 0:00:30]} b3 {[%emt 0:00:30]} 35. axb3 {[%emt 0:00:30]} Bxb3 {[%emt 0:00:30]} 36. Bd4 {[%emt 0:00:30]} Rf4 {[%emt 0:00:30]} 37. Kc1 {[%emt 0:00:30]} Rf5 {[%emt 0:00:30]} 38. Kd2 {[%emt 0:00:30]} a5 {[%emt 0:00:30]} 39. Ke1 {[%emt 0:00:30]} Bc4 {[%emt 0:16:06]} 40. Bc3 {[%emt 0:08:20]} Rf1+ {[%emt 0:00:30]} 41. Kd2 {[%emt 0:00:30]} Rf5 {[%emt 0:00:00]} 42. Ke3 {[%emt 0:00:00]} Be6 {[%emt 0:00:23]} 43. Ke4 {[%emt 0:00:45]} f6 {[%emt 0:03:19]} 44. gxf6 {[%emt 0:00:30]} Kf7 {[%emt 0:00:30]} 45. Qc7+ {[%emt 0:00:30]} Kg6 {[%emt 0:01:43]} 46. Qd8 {[%emt 0:02:20]} Bd5+ {[%emt 0:00:59]} 47. Kd3 {[%emt 0:00:29]} Bc5 {[%emt 0:00:43]} 48. Qe8+ {[%emt 0:00:17]} Bf7 {[%emt 0:00:24]} 49. Qh8 {[%emt 0:00:30]} Kg5 {[%emt 0:00:30]} 50. Bd2+ {[%emt 0:00:30]} Kg4 {[%emt 0:00:30]} 51. Qxh7 {[%emt 0:00:25]} Rd5+ {[%emt 0:04:08]} 52. Kc2 {[%emt 0:00:01]} 1-0

[Event "Turkish-ch Youth U17 2024"]
[Site "Belek Antalya"]
[Date "2024.01.27"]
[Round "9"]
[White "Orhon, Bora"]
[Black "Portakalci, Yusuf"]
[Result "1/2-1/2"]
[ECO "C02"]
[WhiteElo "1937"]
[BlackElo "1951"]
[Annotator "NA RC"]
[PlyCount "85"]
[EventDate "2024.01.21"]
[EventType "swiss"]
[EventCountry "TUR"]
[SourceTitle "playchess.com"]
[Source "ChessBase"]
[SourceQuality "1"]
[TimeControl "5400+30"]

1. e4 {[%emt 0:01:00]} e6 {[%emt 0:06:00]} 2. d4 {[%emt 0:00:30]} d5 {[%emt 0:00:30]} 3. e5 {[%emt 0:00:00]} c5 {[%emt 0:00:00]} 4. c3 {[%emt 0:00:00]} Nc6 {[%emt 0:00:00]} 5. Nf3 {[%emt 0:00:00]} Qb6 {[%emt 0:00:30]} 6. Na3 {[%emt 0:00:00]} cxd4 {[%emt 0:00:30]} 7. cxd4 {[%emt 0:00:00]} Bb4+ {[%emt 0:01:30]} 8. Bd2 {[%emt 0:00:00]} Nge7 {[%emt 0:00:30]} 9. Nc2 {[%emt 0:00:30]} Bxd2+ {[%emt 0:00:30]} 10. Qxd2 {[%emt 0:00:00]} Qxb2 {[%emt 0:03:30]} 11. Bd3 {[%emt 0:00:00]} Qb6 {[%emt 0:01:30]} 12. O-O {[%emt 0:00:30]} h6 {[%emt 0:02:30]} 13. Rab1 {[%emt 0:03:30]} Qc7 {[%emt 0:01:30]} 14. Rfc1 {[%emt 0:04:30]} O-O {[%emt 0:10:30]} 15. Ne3 {[%emt 0:09:30]} Qa5 {[%emt 0:20:30]} 16. Qb2 {[%emt 0:25:30]} Kh8 {[%emt 0:10:30]} 17. Rc5 {[%emt 0:06:30]} Qd8 {[%emt 0:02:30]} 18. Qd2 {[%emt 0:04:30]} Ng8 {[%emt 0:17:46]} 19. Ng4 {[%emt 0:22:30]} Nce7 {[%emt 0:09:09]} 20. h4 {[%emt 0:09:10]} b6 {[%emt 0:06:31]} 21. Rc3 {[%emt 0:02:20]} Bb7 {[%emt 0:00:37]} 22. Rbc1 {[%emt 0:00:44]} Rc8 {[%emt 0:00:30]} 23. Bb1 {[%emt 0:00:30]} Rxc3 {[%emt 0:00:30]} 24. Rxc3 {[%emt 0:00:30]} Nf5 {[%emt 0:00:30]} 25. Qc2 {[%emt 0:00:30]} Qb8 {[%emt 0:00:30]} 26. Ne3 {[%emt 0:00:30]} g6 {[%emt 0:00:30]} 27. Nxf5 {[%emt 0:00:30]} gxf5 {[%emt 0:03:49]} 28. g4 {[%emt 0:06:21]} Ne7 {[%emt 0:00:50]} 29. Qd2 {[%emt 0:00:30]} Kh7 {[%emt 0:00:00]} 30. gxf5 {[%emt 0:00:44]} Nxf5 {[%emt 0:00:28]} 31. Qf4 {[%emt 0:01:12]} Rg8+ {[%emt 0:00:23]} 32. Kh1 {[%emt 0:00:49]} Bc8 {[%emt 0:00:13]} 33. Nh2 {[%emt 0:00:28]} Rg6 {[%emt 0:00:30]} 34. Ng4 {[%emt 0:00:30]} b5 {[%emt 0:00:30]} 35. h5 {[%emt 0:00:30]} Rg5 {[%emt 0:00:30]} 36. Nf6+ {[%emt 0:01:23]} Kh8 {[%emt 0:00:48]} 37. Bxf5 {[%emt 0:00:58]} exf5 {[%emt 0:00:06]} 38. Rg3 {[%emt 0:00:27]} Be6 {[%emt 0:00:50]} 39. Rxg5 {[%emt 0:00:30]} hxg5 {[%emt 0:00:30]} 40. Qxg5 {[%emt 0:00:30]} Qf8 {[%emt 0:00:30]} 41. h6 {[%emt 0:00:30]} b4 {[%emt 0:00:30]} 42. Kg2 {[%emt 0:00:30]} a5 {[%emt 0:00:00]} 43. Kg3 {[%emt 0:01:37]} 1/2-1/2

[Event "Turkish-ch Youth U17 2024"]
[Site "Belek Antalya"]
[Date "2024.01.27"]
[Round "9"]
[White "Eroz, Enis"]
[Black "Saridag, Omer Melih"]
[Result "1/2-1/2"]
[ECO "B01"]
[WhiteElo "1840"]
[BlackElo "2002"]
[Annotator "NA RC"]
[PlyCount "70"]
[EventDate "2024.01.21"]
[EventType "swiss"]
[EventCountry "TUR"]
[SourceTitle "playchess.com"]
[Source "ChessBase"]
[SourceQuality "1"]
[TimeControl "5400+30"]

1. e4 {[%emt 0:01:00]} d5 {[%emt 0:02:00]} 2. exd5 {[%emt 0:00:00]} Qxd5 {[%emt 0:00:30]} 3. Nc3 {[%emt 0:00:00]} Qd6 {[%emt 0:00:30]} 4. d4 {[%emt 0:00:30]} Nf6 {[%emt 0:00:30]} 5. Nf3 {[%emt 0:00:00]} a6 {[%emt 0:00:00]} 6. g3 {[%emt 0:00:00]} Bg4 {[%emt 0:04:00]} 7. Bg2 {[%emt 0:01:30]} Nc6 {[%emt 0:03:30]} 8. O-O {[%emt 0:06:30]} O-O-O {[%emt 0:15:30]} 9. Bf4 {[%emt 0:01:30]} Qb4 {[%emt 0:01:30]} 10. Ne2 {[%emt 0:17:30]} Bxf3 {[%emt 0:13:30]} 11. Bxf3 {[%emt 0:02:30]} e5 {[%emt 0:06:30]} 12. c3 {[%emt 0:00:30]} Qe7 {[%emt 0:08:30]} 13. Bxc6 {[%emt 0:10:30]} exf4 {[%emt 0:01:30]} 14. Bf3 {[%emt 0:00:30]} fxg3 {[%emt 0:00:00]} 15. Nxg3 {[%emt 0:00:30]} g6 {[%emt 0:02:00]} 16. b4 {[%emt 0:04:30]} h5 {[%emt 0:02:30]} 17. b5 {[%emt 0:02:30]} a5 {[%emt 0:03:30]} 18. Qa4 {[%emt 0:07:30]} b6 {[%emt 0:00:30]} 19. Rfe1 {[%emt 0:02:30]} Qd7 {[%emt 0:03:30]} 20. Qc4 {[%emt 0:02:30]} Bd6 {[%emt 0:01:30]} 21. Bc6 {[%emt 0:02:30]} Qg4 {[%emt 0:01:30]} 22. Bg2 {[%emt 0:00:30]} Qd7 {[%emt 0:03:30]} 23. Ne4 {[%emt 0:21:05]} Nxe4 {[%emt 0:03:30]} 24. Rxe4 {[%emt 0:00:29]} h4 {[%emt 0:01:30]} 25. Rae1 {[%emt 0:00:58]} Rh5 {[%emt 0:00:30]} 26. h3 {[%emt 0:03:04]} Qxb5 {[%emt 0:05:32]} 27. Qxf7 {[%emt 0:00:17]} Qf5 {[%emt 0:04:37]} 28. Qc4 {[%emt 0:00:54]} Qb5 {[%emt 0:01:35]} 29. Qe6+ {[%emt 0:00:48]} Kb8 {[%emt 0:01:13]} 30. c4 {[%emt 0:00:39]} Qf5 {[%emt 0:00:30]} 31. c5 {[%emt 0:00:30]} Qxe6 {[%emt 0:00:30]} 32. Rxe6 {[%emt 0:00:30]} bxc5 {[%emt 0:00:30]} 33. Rb1+ {[%emt 0:00:30]} Kc8 {[%emt 0:00:30]} 34. Rxg6 {[%emt 0:06:48]} Kd7 {[%emt 0:05:25]} 35. Bf3 {[%emt 0:01:09]} Rh7 {[%emt 0:01:26]} 1/2-1/2

[Event "Turkish-ch Youth U17 2024"]
[Site "Belek Antalya"]
[Date "2024.01.27"]
[Round "9"]
[White "Alagoz, Zumra Meryem"]
[Black "Dincer, Cagla"]
[Result "1-0"]
[ECO "A80"]
[WhiteElo "1706"]
[BlackElo "1367"]
[Annotator "NA RC COMBH"]
[PlyCount "81"]
[EventDate "2024.01.21"]
[EventType "swiss"]
[EventCountry "TUR"]
[SourceTitle "playchess.com"]
[Source "ChessBase"]
[SourceQuality "1"]
[TimeControl "5400+30"]

1. d4 {[%emt 0:01:00]} f5 {[%emt 0:01:00]} 2. Bg5 {[%emt 0:00:00]} g6 {[%emt 0:05:30]} 3. Nc3 {[%emt 0:02:00]} Bg7 {[%emt 0:01:30]} 4. Nf3 {[%emt 0:00:30]} Nf6 {[%emt 0:04:30]} 5. e3 {[%emt 0:00:00]} b6 {[%emt 0:01:30]} 6. Bd3 {[%emt 0:05:00]} Bb7 {[%emt 0:01:30]} 7. h4 {[%emt 0:02:30]} d6 {[%emt 0:16:30]} 8. Bf4 {[%emt 0:11:30]} e6 {[%emt 0:01:30]} 9. Qe2 {[%emt 0:12:30]} Nh5 {[%emt 0:08:30]} 10. O-O-O {[%emt 0:03:30]} Nxf4 {[%emt 0:01:30]} 11. exf4 {[%emt 0:00:30]} Qe7 {[%emt 0:00:30]} 12. Rhe1 {[%emt 0:02:30]} Kd7 {[%emt 0:10:30]} 13. Bc4 {[%emt 0:01:30]} Re8 {[%emt 0:01:30]} 14. Ng5 {[%emt 0:17:30]} d5 {[%emt 0:02:30]} 15. Bxd5 {[%emt 0:04:30]} Bxd5 {[%emt 0:01:30]} 16. Nxd5 {[%emt 0:00:30]} Qd6 {[%emt 0:00:30]} 17. Ne3 {[%emt 0:00:30]} Qxf4 {[%emt 0:03:30]} 18. g3 {[%emt 0:00:30]} Qd6 {[%emt 0:00:00]} 19. Nf7 {[%emt 0:08:30]} Qf8 {[%emt 0:00:00]} 20. Ne5+ {[%emt 0:00:30]} Kc8 {[%emt 0:00:30]} 21. Qf3 {[%emt 0:00:30]} Bxe5 {[%emt 0:00:30]} 22. Qxa8 {[%emt 0:00:30]} Bg7 {[%emt 0:00:30]} 23. Qf3 {[%emt 0:00:30]} Rd8 {[%emt 0:03:30]} 24. c3 {[%emt 0:03:30]} Qe8 {[%emt 0:00:30]} 25. Nc2 {[%emt 0:01:30]} Qa4 {[%emt 0:01:30]} 26. Kb1 {[%emt 0:00:00]} Rd6 {[%emt 0:00:30]} 27. g4 {[%emt 0:03:26]} Kd8 {[%emt 0:00:30]} 28. gxf5 {[%emt 0:00:30]} exf5 {[%emt 0:00:30]} 29. Qe3 {[%emt 0:00:30]} Qd7 {[%emt 0:05:30]} 30. Qg5+ {[%emt 0:00:28]} Bf6 {[%emt 0:00:00]} 31. Qh6 {[%emt 0:00:24]} Qf7 {[%emt 0:00:00]} 32. Nb4 {[%emt 0:01:08]} b5 {[%emt 0:00:30]} 33. Nd3 {[%emt 0:01:51]} Ra6 {[%emt 0:00:30]} 34. d5 {[%emt 0:00:02]} Ra4 {[%emt 0:00:30]} 35. Qe3 {[%emt 0:01:46]} Nd7 {[%emt 0:02:30]} 36. Qe6 {[%emt 0:00:54]} Qf8 {[%emt 0:00:00]} 37. Qc6 {[%emt 0:00:17]} Nb6 {[%emt 0:03:00]} 38. Nc5 {[%emt 0:00:15]} Rc4 {[%emt 0:01:30]} 39. Ne6+ {[%emt 0:00:30]} Kc8 {[%emt 0:00:30]} 40. Nxf8 {[%emt 0:00:00]} Rxc6 {[%emt 0:00:00]} 41. dxc6 {[%emt 0:00:00]} 1-0

[Event "Turkish-ch Youth U17 2024"]
[Site "Belek Antalya"]
[Date "2024.01.27"]
[Round "9"]
[White "Atik, Muhammed Ihsan"]
[Black "Sezis, Doruk"]
[Result "1/2-1/2"]
[ECO "A46"]
[WhiteElo "1626"]
[BlackElo "2001"]
[Annotator "NA RC"]
[PlyCount "124"]
[EventDate "2024.01.21"]
[EventType "swiss"]
[EventCountry "TUR"]
[SourceTitle "playchess.com"]
[Source "ChessBase"]
[SourceQuality "1"]
[TimeControl "5400+30"]

1. d4 {[%emt 0:03:00]} Nf6 {[%emt 0:01:00]} 2. Nf3 {[%emt 0:00:30]} e6 {[%emt 0:00:30]} 3. g3 {[%emt 0:00:00]} b5 {[%emt 0:00:00]} 4. Bg2 {[%emt 0:00:00]} Bb7 {[%emt 0:00:00]} 5. O-O {[%emt 0:00:30]} c5 {[%emt 0:00:00]} 6. a4 {[%emt 0:05:30]} b4 {[%emt 0:00:00]} 7. c4 {[%emt 0:01:30]} Na6 {[%emt 0:10:30]} 8. e3 {[%emt 0:06:30]} Qc7 {[%emt 0:02:30]} 9. b3 {[%emt 0:01:30]} Be7 {[%emt 0:00:00]} 10. Bb2 {[%emt 0:01:30]} O-O {[%emt 0:03:00]} 11. Nbd2 {[%emt 0:05:30]} Rac8 {[%emt 0:04:30]} 12. Qc2 {[%emt 0:05:30]} d5 {[%emt 0:02:30]} 13. Ne5 {[%emt 0:05:30]} Rfd8 {[%emt 0:05:30]} 14. Rac1 {[%emt 0:01:30]} dxc4 {[%emt 0:05:30]} 15. bxc4 {[%emt 0:07:30]} Nd7 {[%emt 0:08:30]} 16. Bxb7 {[%emt 0:12:30]} Qxb7 {[%emt 0:00:30]} 17. Nxd7 {[%emt 0:00:00]} Qxd7 {[%emt 0:01:30]} 18. Rfd1 {[%emt 0:03:00]} Rb8 {[%emt 0:02:30]} 19. Ne4 {[%emt 0:06:30]} Qc6 {[%emt 0:09:30]} 20. f3 {[%emt 0:01:30]} f5 {[%emt 0:08:30]} 21. d5 {[%emt 0:02:30]} exd5 {[%emt 0:00:30]} 22. cxd5 {[%emt 0:01:30]} Qh6 {[%emt 0:21:15]} 23. Nf2 {[%emt 0:06:30]} Bf6 {[%emt 0:01:21]} 24. e4 {[%emt 0:02:59]} b3 {[%emt 0:07:48]} 25. Qe2 {[%emt 0:01:37]} Bxb2 {[%emt 0:01:16]} 26. Qxb2 {[%emt 0:00:30]} fxe4 {[%emt 0:00:00]} 27. fxe4 {[%emt 0:00:00]} Rb4 {[%emt 0:01:39]} 28. e5 {[%emt 0:02:38]} c4 {[%emt 0:00:30]} 29. e6 {[%emt 0:00:30]} Re8 {[%emt 0:00:30]} 30. Ng4 {[%emt 0:00:30]} Qg5 {[%emt 0:00:30]} 31. Ne5 {[%emt 0:00:30]} Nc5 {[%emt 0:00:30]} 32. Qf2 {[%emt 0:00:30]} Rf8 {[%emt 0:02:48]} 33. Qxc5 {[%emt 0:08:33]} b2 {[%emt 0:00:16]} 34. Nd7 {[%emt 0:00:40]} Qf5 {[%emt 0:01:06]} 35. Nxf8 {[%emt 0:01:22]} bxc1=Q {[%emt 0:00:23]} 36. Rxc1 {[%emt 0:00:00]} Rb1 {[%emt 0:00:48]} 37. Qxc4 {[%emt 0:00:53]} Rxc1+ {[%emt 0:00:30]} 38. Qxc1 {[%emt 0:00:30]} Qxd5 {[%emt 0:00:30]} 39. Nd7 {[%emt 0:00:30]} Qxe6 {[%emt 0:00:30]} 40. Qc8+ {[%emt 0:00:30]} Kf7 {[%emt 0:00:30]} 41. Qc4 {[%emt 0:01:58]} Qxc4 {[%emt 0:00:00]} 42. Ne5+ {[%emt 0:00:30]} Ke6 {[%emt 0:00:11]} 43. Nxc4 {[%emt 0:00:30]} Kd5 {[%emt 0:00:00]} 44. Nb2 {[%emt 0:00:25]} Kc5 {[%emt 0:00:00]} 45. Nd3+ {[%emt 0:00:38]} Kc4 {[%emt 0:00:01]} 46. Ne5+ {[%emt 0:00:30]} Kb3 {[%emt 0:00:00]} 47. a5 {[%emt 0:03:46]} Ka4 {[%emt 0:00:13]} 48. Nc6 {[%emt 0:00:00]} a6 {[%emt 0:00:00]} 49. Kf2 {[%emt 0:00:24]} Kb5 {[%emt 0:00:08]} 50. Nd4+ {[%emt 0:00:30]} Kxa5 {[%emt 0:00:30]} 51. Nc6+ {[%emt 0:00:30]} Kb5 {[%emt 0:00:30]} 52. Nd4+ {[%emt 0:00:00]} Kc4 {[%emt 0:00:00]} 53. Ke3 {[%emt 0:00:44]} a5 {[%emt 0:00:00]} 54. Nc2 {[%emt 0:00:30]} Kc3 {[%emt 0:00:00]} 55. Nd4 {[%emt 0:00:30]} a4 {[%emt 0:00:27]} 56. h4 {[%emt 0:00:30]} Kc4 {[%emt 0:00:30]} 57. Nc2 {[%emt 0:00:30]} Kc3 {[%emt 0:00:30]} 58. Na3 {[%emt 0:00:55]} Kb3 {[%emt 0:00:00]} 59. Nb5 {[%emt 0:00:30]} Kb4 {[%emt 0:00:00]} 60. Nd4 {[%emt 0:00:30]} Kc4 {[%emt 0:00:00]} 61. g4 {[%emt 0:00:37]} a3 {[%emt 0:00:22]} 62. Nc2 {[%emt 0:00:30]} a2 {[%emt 0:00:00]} 1/2-1/2

[Event "Turkish-ch Youth U17 2024"]
[Site "Belek Antalya"]
[Date "2024.01.27"]
[Round "9"]
[White "Kayis, Merve"]
[Black "Mustu, Hatice Asli"]
[Result "0-1"]
[ECO "D31"]
[WhiteElo "1510"]
[BlackElo "1841"]
[Annotator "NA RC COMBH"]
[PlyCount "54"]
[EventDate "2024.01.21"]
[EventType "swiss"]
[EventCountry "TUR"]
[SourceTitle "playchess.com"]
[Source "ChessBase"]
[SourceQuality "1"]
[TimeControl "5400+30"]

1. d4 {[%emt 0:01:00]} d5 {[%emt 0:01:00]} 2. c4 {[%emt 0:00:30]} e6 {[%emt 0:00:00]} 3. Nf3 {[%emt 0:00:30]} c6 {[%emt 0:00:00]} 4. Nc3 {[%emt 0:00:30]} dxc4 {[%emt 0:00:00]} 5. a4 {[%emt 0:00:30]} Bb4 {[%emt 0:00:00]} 6. Bd2 {[%emt 0:00:30]} a5 {[%emt 0:00:30]} 7. e3 {[%emt 0:01:30]} b5 {[%emt 0:00:30]} 8. Ne5 {[%emt 0:01:30]} Nf6 {[%emt 0:13:30]} 9. Qf3 {[%emt 0:07:30]} Ra6 {[%emt 0:09:30]} 10. Qg3 {[%emt 0:13:30]} O-O {[%emt 0:08:30]} 11. axb5 {[%emt 0:20:30]} cxb5 {[%emt 0:00:30]} 12. Nxc4 {[%emt 0:00:30]} bxc4 {[%emt 0:00:30]} 13. Qxb8 {[%emt 0:00:30]} Rb6 {[%emt 0:00:30]} 14. Qe5 {[%emt 0:00:30]} Ba6 {[%emt 0:00:30]} 15. Be2 {[%emt 0:00:30]} Nd5 {[%emt 0:30:30]} 16. O-O {[%emt 0:21:30]} Bd6 {[%emt 0:00:30]} 17. Qh5 {[%emt 0:00:30]} Rxb2 {[%emt 0:07:30]} 18. Rfd1 {[%emt 0:07:30]} Rxd2 {[%emt 0:00:30]} 19. Rxd2 {[%emt 0:00:30]} Nxc3 {[%emt 0:00:30]} 20. Qxa5 {[%emt 0:00:30]} Nxe2+ {[%emt 0:00:30]} 21. Rxe2 {[%emt 0:00:30]} Bb7 {[%emt 0:00:30]} 22. Qc3 {[%emt 0:00:30]} Qh4 {[%emt 0:00:30]} 23. f4 {[%emt 0:00:30]} Rc8 {[%emt 0:00:30]} 24. Ra4 {[%emt 0:00:30]} Qg4 {[%emt 0:00:30]} 25. Kf1 {[%emt 0:00:30]} Bxg2+ {[%emt 0:00:30]} 26. Ke1 {[%emt 0:00:30]} Bf3 {[%emt 0:00:30]} 27. Rf2 {[%emt 0:00:30]} Bd5 {[%emt 0:17:33]} 0-1

[Event "Turkish-ch Youth U17 2024"]
[Site "Belek Antalya"]
[Date "2024.01.27"]
[Round "9"]
[White "Unal, Beren"]
[Black "Akat, Elifnaz"]
[Result "1-0"]
[ECO "B51"]
[WhiteElo "1505"]
[BlackElo "1849"]
[Annotator "NA RC COMBH"]
[PlyCount "74"]
[EventDate "2024.01.21"]
[EventType "swiss"]
[EventCountry "TUR"]
[SourceTitle "playchess.com"]
[Source "ChessBase"]
[SourceQuality "1"]
[TimeControl "5400+30"]

1. e4 {[%emt 0:01:00]} c5 {[%emt 0:01:00]} 2. Nf3 {[%emt 0:00:30]} Nc6 {[%emt 0:00:30]} 3. Bb5 {[%emt 0:00:30]} d6 {[%emt 0:00:00]} 4. c3 {[%emt 0:00:30]} Nf6 {[%emt 0:01:00]} 5. d3 {[%emt 0:00:30]} Bd7 {[%emt 0:00:00]} 6. O-O {[%emt 0:01:30]} a6 {[%emt 0:00:00]} 7. Ba4 {[%emt 0:02:30]} b5 {[%emt 0:00:30]} 8. Bc2 {[%emt 0:06:30]} g6 {[%emt 0:00:30]} 9. h3 {[%emt 0:01:30]} Bg7 {[%emt 0:00:30]} 10. Re1 {[%emt 0:04:30]} Rc8 {[%emt 0:01:30]} 11. d4 {[%emt 0:06:30]} cxd4 {[%emt 0:04:30]} 12. cxd4 {[%emt 0:00:30]} O-O {[%emt 0:01:30]} 13. Nc3 {[%emt 0:08:30]} b4 {[%emt 0:11:30]} 14. Ne2 {[%emt 0:00:30]} Na5 {[%emt 0:03:30]} 15. Bd3 {[%emt 0:08:30]} Qb6 {[%emt 0:04:30]} 16. b3 {[%emt 0:05:30]} Bb5 {[%emt 0:02:30]} 17. Bb2 {[%emt 0:07:30]} Rfd8 {[%emt 0:06:30]} 18. Qd2 {[%emt 0:04:30]} Bxd3 {[%emt 0:07:30]} 19. Qxd3 {[%emt 0:00:30]} Qc6 {[%emt 0:06:30]} 20. Ng3 {[%emt 0:08:30]} Bh6 {[%emt 0:08:30]} 21. Bc1 {[%emt 0:05:30]} Bg7 {[%emt 0:00:30]} 22. Bd2 {[%emt 0:00:30]} Qb6 {[%emt 0:00:30]} 23. Rac1 {[%emt 0:00:30]} Nd7 {[%emt 0:04:30]} 24. Rxc8 {[%emt 0:04:30]} Rxc8 {[%emt 0:00:30]} 25. Rc1 {[%emt 0:01:51]} Rxc1+ {[%emt 0:02:30]} 26. Bxc1 {[%emt 0:00:09]} Nc6 {[%emt 0:02:30]} 27. Be3 {[%emt 0:00:30]} Na7 {[%emt 0:00:30]} 28. Qc4 {[%emt 0:02:34]} h6 {[%emt 0:10:30]} 29. d5 {[%emt 0:05:24]} Nc5 {[%emt 0:00:30]} 30. e5 {[%emt 0:00:31]} Qb5 {[%emt 0:07:00]} 31. Bxc5 {[%emt 0:02:45]} Qxc5 {[%emt 0:01:17]} 32. Qxc5 {[%emt 0:00:30]} dxc5 {[%emt 0:00:30]} 33. Ne4 {[%emt 0:00:30]} Nb5 {[%emt 0:00:30]} 34. Nxc5 {[%emt 0:00:30]} Nc7 {[%emt 0:00:30]} 35. d6 {[%emt 0:00:30]} Ne6 {[%emt 0:00:30]} 36. Nxe6 {[%emt 0:00:30]} fxe6 {[%emt 0:00:30]} 37. d7 {[%emt 0:00:30]} Bf6 {[%emt 0:00:30]} 1-0